[Event "Titled Tuesday Blitz March 14 Early 2023"]
[White "Postny, Evgeny"]
[Black "Rosen, Eric"]
[WhiteFideId "2804344"]
[BlackFideId "2032562"]
[WhiteElo "2509"]
[BlackElo "2331"]
[Result "0-1"]
[Round "08"]
[TimeControl "180+2"]
[Date "2023.03.14"]
[WhiteClock "0:00:02"]
[BlackClock "0:00:06"]

1. Nf3 {[%clk 0:02:54]}  d5 {[%clk 0:02:59]} 2. c4 {[%clk 0:02:55]}  e6 {[%clk 0:02:59]} 3. g3 {[%clk 0:02:55]}  Nf6 {[%clk 0:02:59]} 4. Bg2 {[%clk 0:02:55]}  h6 {[%clk 0:02:59]} 5. O-O {[%clk 0:02:56]}  Bd6 {[%clk 0:02:59]} 6. d4 {[%clk 0:02:54]}  O-O {[%clk 0:02:59]} 7. b3 {[%clk 0:02:51]}  b6 {[%clk 0:02:56]} 8. cxd5 {[%clk 0:02:47]}  exd5 {[%clk 0:02:56]} 9. Ba3 {[%clk 0:02:46]}  Bb7 {[%clk 0:02:52]} 10. Bxd6 {[%clk 0:02:44]}  cxd6 {[%clk 0:02:52]} 11. Nc3 {[%clk 0:02:45]}  Nbd7 {[%clk 0:02:49]} 12. Rc1 {[%clk 0:02:42]}  a6 {[%clk 0:02:49]} 13. Ne1 {[%clk 0:02:40]}  b5 {[%clk 0:02:46]} 14. Nd3 {[%clk 0:02:39]}  Re8 {[%clk 0:02:42]} 15. Nf4 {[%clk 0:02:34]}  Nb6 {[%clk 0:02:43]} 16. a4 {[%clk 0:02:33]}  b4 {[%clk 0:02:37]} 17. a5 {[%clk 0:02:22]}  bxc3 {[%clk 0:02:37]} 18. axb6 {[%clk 0:02:22]}  Rc8 {[%clk 0:02:29]} 19. Qd3 {[%clk 0:02:22]}  Qxb6 {[%clk 0:02:28]} 20. Rxc3 {[%clk 0:02:21]}  Rxc3 {[%clk 0:02:29]} 21. Qxc3 {[%clk 0:02:21]}  g5 {[%clk 0:02:27]} 22. Nd3 {[%clk 0:02:13]}  Rxe2 {[%clk 0:02:27]} 23. Nc1 {[%clk 0:01:36]}  Ne4 {[%clk 0:02:09]} 24. Qf3 {[%clk 0:01:21]}  Rc2 {[%clk 0:01:57]} 25. Qf5 {[%clk 0:00:46]}  Qxd4 {[%clk 0:01:43]} 26. h4 {[%clk 0:00:46]}  Bc8 {[%clk 0:01:39]} 27. Qf3 {[%clk 0:00:39]}  Rc3 {[%clk 0:01:15]} 28. Qe2 {[%clk 0:00:33]}  Rxg3 {[%clk 0:00:59]} 29. Kh2 {[%clk 0:00:24]}  Rg4 {[%clk 0:00:54]} 30. hxg5 {[%clk 0:00:24]}  Rh4+ {[%clk 0:00:52]} 31. Kg1 {[%clk 0:00:24]}  hxg5 {[%clk 0:00:50]} 32. Qc2 {[%clk 0:00:21]}  Bf5 {[%clk 0:00:48]} 33. Ne2 {[%clk 0:00:20]}  Qe5 {[%clk 0:00:48]} 34. Rc1 {[%clk 0:00:17]}  Nxf2 {[%clk 0:00:41]} 35. Qd2 {[%clk 0:00:10]}  Ne4 {[%clk 0:00:24]} 36. Qd4 {[%clk 0:00:10]}  Qh2+ {[%clk 0:00:23]} 37. Kf1 {[%clk 0:00:11]}  Rg4 {[%clk 0:00:17]} 38. Qg1 {[%clk 0:00:08]}  Nd2+ {[%clk 0:00:10]} 39. Ke1 {[%clk 0:00:07]}  Qxg1+ {[%clk 0:00:10]} 40. Nxg1 {[%clk 0:00:07]}  Rxg2 {[%clk 0:00:10]} 41. Ne2 {[%clk 0:00:07]}  Nxb3 {[%clk 0:00:09]} 42. Rb1 {[%clk 0:00:06]}  Nc5 {[%clk 0:00:08]} 43. Rb6 {[%clk 0:00:06]}  a5 {[%clk 0:00:06]} 44. Nd4 {[%clk 0:00:06]}  Nd3+ {[%clk 0:00:06]} 45. Kf1 {[%clk 0:00:06]}  Rf2+ {[%clk 0:00:07]} 46. Kg1 {[%clk 0:00:06]}  Be4 {[%clk 0:00:07]} 47. Rxd6 {[%clk 0:00:06]}  Rg2+ {[%clk 0:00:07]} 48. Kf1 {[%clk 0:00:05]}  Rh2 {[%clk 0:00:07]} 49. Rd7 {[%clk 0:00:02]}  a4 {[%clk 0:00:07]} 50. Nc6 {[%clk 0:00:02]}  a3 {[%clk 0:00:07]} 51. Ra7 {[%clk 0:00:03]}  a2 {[%clk 0:00:07]} 52. Ne7+ {[%clk 0:00:03]}  Kh7 {[%clk 0:00:07]} 53. Kg1 {[%clk 0:00:02]}  Rh1# {[%clk 0:00:06]} 0-1


[Site "https://www.chess.com"]

[Event "Titled Tuesday Blitz March 14 Early 2023"]
[White "Safin, Robert"]
[Black "Samant Aditya S"]
[WhiteFideId "34189120"]
[BlackFideId "35080580"]
[WhiteElo "2245"]
[BlackElo "2362"]
[Result "0-1"]
[Round "08"]
[TimeControl "180+2"]
[Date "2023.03.14"]
[WhiteClock "0:00:23"]
[BlackClock "0:00:39"]

1. e4 {[%clk 0:03:00]}  c5 {[%clk 0:02:59]} 2. c3 {[%clk 0:03:00]}  d5 {[%clk 0:02:57]} 3. exd5 {[%clk 0:03:01]}  Qxd5 {[%clk 0:02:58]} 4. d4 {[%clk 0:03:02]}  Nc6 {[%clk 0:02:58]} 5. Nf3 {[%clk 0:03:02]}  Bf5 {[%clk 0:02:58]} 6. Be3 {[%clk 0:03:01]}  Nf6 {[%clk 0:02:59]} 7. Qb3 {[%clk 0:02:28]}  Qxb3 {[%clk 0:02:14]} 8. axb3 {[%clk 0:02:29]}  cxd4 {[%clk 0:02:07]} 9. Nxd4 {[%clk 0:02:30]}  Nxd4 {[%clk 0:02:06]} 10. Bxd4 {[%clk 0:02:31]}  a6 {[%clk 0:02:07]} 11. b4 {[%clk 0:02:09]}  Nd7 {[%clk 0:01:56]} 12. Nd2 {[%clk 0:02:00]}  e5 {[%clk 0:01:43]} 13. Be3 {[%clk 0:02:00]}  Be6 {[%clk 0:01:30]} 14. Bc4 {[%clk 0:01:48]}  Bxc4 {[%clk 0:01:27]} 15. Nxc4 {[%clk 0:01:49]}  Rc8 {[%clk 0:01:28]} 16. Na5 {[%clk 0:01:41]}  Rc7 {[%clk 0:01:29]} 17. Ke2 {[%clk 0:01:41]}  Bd6 {[%clk 0:00:59]} 18. Rhd1 {[%clk 0:01:39]}  Ke7 {[%clk 0:01:00]} 19. Rd5 {[%clk 0:01:21]}  Ke6 {[%clk 0:01:00]} 20. Rad1 {[%clk 0:01:13]}  Be7 {[%clk 0:01:01]} 21. f3 {[%clk 0:01:06]}  h5 {[%clk 0:00:53]} 22. h3 {[%clk 0:00:27]}  g5 {[%clk 0:00:41]} 23. Bxg5 {[%clk 0:00:24]}  Bxg5 {[%clk 0:00:40]} 24. Rxd7 {[%clk 0:00:23]}  Rxd7 {[%clk 0:00:39]} 0-1


[Site "https://www.chess.com"]

[Event "Titled Tuesday Blitz March 14 Early 2023"]
[White "Rodchenkov, Sergey D."]
[Black "Shuvalova, Polina"]
[WhiteFideId "4168712"]
[BlackFideId "24171760"]
[WhiteElo "2277"]
[BlackElo "2297"]
[Result "0-1"]
[Round "08"]
[TimeControl "180+2"]
[Date "2023.03.14"]
[WhiteClock "0:00:11"]
[BlackClock "0:01:12"]

1. e4 {[%clk 0:03:00]}  c6 {[%clk 0:02:59]} 2. d4 {[%clk 0:03:00]}  d5 {[%clk 0:03:00]} 3. exd5 {[%clk 0:03:01]}  cxd5 {[%clk 0:03:00]} 4. Bd3 {[%clk 0:03:01]}  Nc6 {[%clk 0:03:00]} 5. c3 {[%clk 0:03:01]}  Nf6 {[%clk 0:03:00]} 6. h3 {[%clk 0:03:02]}  e5 {[%clk 0:02:54]} 7. dxe5 {[%clk 0:03:03]}  Nxe5 {[%clk 0:02:55]} 8. Nf3 {[%clk 0:03:03]}  Nxd3+ {[%clk 0:02:55]} 9. Qxd3 {[%clk 0:03:04]}  Bd6 {[%clk 0:02:55]} 10. O-O {[%clk 0:03:04]}  O-O {[%clk 0:02:55]} 11. Be3 {[%clk 0:02:48]}  Re8 {[%clk 0:02:52]} 12. Nbd2 {[%clk 0:02:47]}  Bc7 {[%clk 0:02:44]} 13. Rfd1 {[%clk 0:02:38]}  Qd6 {[%clk 0:02:37]} 14. Nf1 {[%clk 0:02:38]}  Be6 {[%clk 0:02:30]} 15. Bd4 {[%clk 0:02:31]}  Ne4 {[%clk 0:02:27]} 16. Be5 {[%clk 0:01:59]}  Qb6 {[%clk 0:02:22]} 17. Qd4 {[%clk 0:01:55]}  Qxd4 {[%clk 0:02:06]} 18. Bxd4 {[%clk 0:01:33]}  f6 {[%clk 0:02:06]} 19. Ne3 {[%clk 0:01:28]}  Red8 {[%clk 0:02:02]} 20. a4 {[%clk 0:01:28]}  a5 {[%clk 0:02:00]} 21. Nd2 {[%clk 0:01:19]}  Kf7 {[%clk 0:01:55]} 22. Nb3 {[%clk 0:01:14]}  h5 {[%clk 0:01:49]} 23. Nd2 {[%clk 0:00:54]}  Rab8 {[%clk 0:01:44]} 24. Ba7 {[%clk 0:00:49]}  Rbc8 {[%clk 0:01:42]} 25. Bd4 {[%clk 0:00:49]}  h4 {[%clk 0:01:36]} 26. Nb3 {[%clk 0:00:48]}  Rb8 {[%clk 0:01:33]} 27. Ba7 {[%clk 0:00:46]}  Rbc8 {[%clk 0:01:32]} 28. Bd4 {[%clk 0:00:46]}  b6 {[%clk 0:01:25]} 29. Rd3 {[%clk 0:00:44]}  Rb8 {[%clk 0:01:24]} 30. f3 {[%clk 0:00:29]}  Nd6 {[%clk 0:01:18]} 31. Rad1 {[%clk 0:00:25]}  Nc4 {[%clk 0:01:17]} 32. Rb1 {[%clk 0:00:15]}  Bf4 {[%clk 0:01:16]} 33. Nd2 {[%clk 0:00:11]}  Bxe3+ {[%clk 0:01:11]} 34. Bxe3 {[%clk 0:00:11]}  Bf5 {[%clk 0:01:12]} 0-1


[Site "https://www.chess.com"]

[Event "Titled Tuesday Blitz March 14 Early 2023"]
[White "Vokhidov, Shamsiddin"]
[Black "Jeet, Jain"]
[WhiteFideId "14204223"]
[BlackFideId "5073022"]
[WhiteElo "2570"]
[BlackElo "2067"]
[Result "1-0"]
[Round "08"]
[TimeControl "180+2"]
[Date "2023.03.14"]
[WhiteClock "0:01:58"]
[BlackClock "0:01:51"]

1. e4 {[%clk 0:03:00]}  c6 {[%clk 0:02:57]} 2. Nc3 {[%clk 0:03:01]}  d5 {[%clk 0:02:57]} 3. Nf3 {[%clk 0:03:02]}  Bg4 {[%clk 0:02:57]} 4. h3 {[%clk 0:03:02]}  Bxf3 {[%clk 0:02:57]} 5. Qxf3 {[%clk 0:03:03]}  d4 {[%clk 0:02:55]} 6. Bc4 {[%clk 0:02:58]}  Nf6 {[%clk 0:02:52]} 7. e5 {[%clk 0:02:58]}  dxc3 {[%clk 0:02:52]} 8. exf6 {[%clk 0:02:58]}  exf6 {[%clk 0:02:52]} 9. dxc3 {[%clk 0:02:56]}  Bd6 {[%clk 0:02:49]} 10. Be3 {[%clk 0:02:53]}  O-O {[%clk 0:02:46]} 11. O-O-O {[%clk 0:02:53]}  Qc7 {[%clk 0:02:47]} 12. Rd2 {[%clk 0:02:51]}  b5 {[%clk 0:02:46]} 13. Bd3 {[%clk 0:02:44]}  Nd7 {[%clk 0:02:41]} 14. Bxh7+ {[%clk 0:02:41]}  Kxh7 {[%clk 0:02:38]} 15. Rhd1 {[%clk 0:02:42]}  Ne5 {[%clk 0:02:26]} 16. Qe4+ {[%clk 0:02:41]}  f5 {[%clk 0:02:17]} 17. Qh4+ {[%clk 0:02:41]}  Kg8 {[%clk 0:02:16]} 18. Rxd6 {[%clk 0:02:42]}  Nc4 {[%clk 0:02:11]} 19. Rd7 {[%clk 0:02:15]}  Qa5 {[%clk 0:02:09]} 20. a3 {[%clk 0:02:11]}  Nxe3 {[%clk 0:02:06]} 21. fxe3 {[%clk 0:02:12]}  Rae8 {[%clk 0:02:06]} 22. Qf4 {[%clk 0:02:05]}  g6 {[%clk 0:02:00]} 23. R1d6 {[%clk 0:02:03]}  Qb6 {[%clk 0:01:58]} 24. Qd4 {[%clk 0:01:59]}  Rxe3 {[%clk 0:01:51]} 25. Rxg6+ {[%clk 0:01:58]} 1-0


[Site "https://www.chess.com"]

[Event "Titled Tuesday Blitz March 14 Early 2023"]
[White "Garakov, Mikhael"]
[Black "Santos Ruiz, Miguel"]
[WhiteFideId "4169034"]
[BlackFideId "22291482"]
[WhiteElo "2347"]
[BlackElo "2504"]
[Result "0-1"]
[Round "08"]
[TimeControl "180+2"]
[Date "2023.03.14"]
[WhiteClock "0:00:15"]
[BlackClock "0:00:49"]

1. e4 {[%clk 0:02:50]}  c5 {[%clk 0:02:55]} 2. Nf3 {[%clk 0:02:49]}  Qc7 {[%clk 0:02:56]} 3. Nc3 {[%clk 0:02:41]}  e6 {[%clk 0:02:55]} 4. Be2 {[%clk 0:02:39]}  a6 {[%clk 0:02:55]} 5. O-O {[%clk 0:02:38]}  b5 {[%clk 0:02:55]} 6. d4 {[%clk 0:02:30]}  cxd4 {[%clk 0:02:55]} 7. Nxd4 {[%clk 0:02:31]}  Bb7 {[%clk 0:02:55]} 8. Bf3 {[%clk 0:02:17]}  Nc6 {[%clk 0:02:31]} 9. Nxc6 {[%clk 0:02:17]}  Bxc6 {[%clk 0:02:31]} 10. Re1 {[%clk 0:02:16]}  Ne7 {[%clk 0:02:24]} 11. Nd5 {[%clk 0:02:09]}  Qb7 {[%clk 0:02:20]} 12. Bf4 {[%clk 0:02:03]}  Rc8 {[%clk 0:02:19]} 13. Bd6 {[%clk 0:01:46]}  Ng6 {[%clk 0:02:04]} 14. Bxf8 {[%clk 0:01:35]}  Rxf8 {[%clk 0:01:59]} 15. a4 {[%clk 0:01:15]}  bxa4 {[%clk 0:01:54]} 16. Qd4 {[%clk 0:01:13]}  f6 {[%clk 0:01:52]} 17. Nb6 {[%clk 0:01:11]}  Rb8 {[%clk 0:01:49]} 18. Nc4 {[%clk 0:01:09]}  Qc7 {[%clk 0:01:41]} 19. Nd6+ {[%clk 0:01:08]}  Ke7 {[%clk 0:01:41]} 20. Rad1 {[%clk 0:01:07]}  Qb6 {[%clk 0:01:38]} 21. Qd2 {[%clk 0:00:56]}  Ne5 {[%clk 0:01:35]} 22. Be2 {[%clk 0:00:52]}  Qc5 {[%clk 0:01:28]} 23. c3 {[%clk 0:00:37]}  Rb3 {[%clk 0:01:13]} 24. Kh1 {[%clk 0:00:25]}  Qxf2 {[%clk 0:00:50]} 25. Bxa6 {[%clk 0:00:14]}  Qxd2 {[%clk 0:00:49]} 26. Rxd2 {[%clk 0:00:15]}  Rfb8 {[%clk 0:00:49]} 27. Ree2 {[%clk 0:00:15]}  a3 {[%clk 0:00:49]} 0-1


[Site "https://www.chess.com"]

[Event "Titled Tuesday Blitz March 14 Early 2023"]
[White "Skvortsov, Andrei"]
[Black "Begunov, Konstantin"]
[WhiteFideId "24108600"]
[BlackFideId "4118510"]
[WhiteElo "2259"]
[BlackElo "2079"]
[Result "1-0"]
[Round "08"]
[TimeControl "180+2"]
[Date "2023.03.14"]
[WhiteClock "0:01:19"]
[BlackClock "0:00:43"]

1. Nf3 {[%clk 0:02:47]}  d5 {[%clk 0:02:59]} 2. g3 {[%clk 0:02:47]}  c6 {[%clk 0:03:00]} 3. Bg2 {[%clk 0:02:47]}  Bg4 {[%clk 0:03:01]} 4. Ne5 {[%clk 0:02:46]}  Bh5 {[%clk 0:03:00]} 5. O-O {[%clk 0:02:44]}  Nd7 {[%clk 0:03:00]} 6. d4 {[%clk 0:02:41]}  Nxe5 {[%clk 0:03:00]} 7. dxe5 {[%clk 0:02:41]}  e6 {[%clk 0:03:00]} 8. c4 {[%clk 0:02:38]}  dxc4 {[%clk 0:02:57]} 9. Qc2 {[%clk 0:02:38]}  Qd4 {[%clk 0:02:44]} 10. Bf4 {[%clk 0:02:27]}  Bc5 {[%clk 0:02:33]} 11. Nc3 {[%clk 0:02:12]}  Bg6 {[%clk 0:02:31]} 12. Qa4 {[%clk 0:02:06]}  Bb6 {[%clk 0:01:55]} 13. Bxc6+ {[%clk 0:02:00]}  Kf8 {[%clk 0:01:41]} 14. Rad1 {[%clk 0:01:50]}  Qc5 {[%clk 0:01:38]} 15. Bxb7 {[%clk 0:01:47]}  Rb8 {[%clk 0:01:36]} 16. Rd7 {[%clk 0:01:45]}  Ne7 {[%clk 0:01:29]} 17. Be3 {[%clk 0:01:38]}  Qa5 {[%clk 0:00:56]} 18. Qxa5 {[%clk 0:01:28]}  Bxa5 {[%clk 0:00:57]} 19. Bxa7 {[%clk 0:01:25]}  Rd8 {[%clk 0:00:57]} 20. Rfd1 {[%clk 0:01:22]}  Ke8 {[%clk 0:00:54]} 21. Rxd8+ {[%clk 0:01:21]}  Bxd8 {[%clk 0:00:55]} 22. Nb5 {[%clk 0:01:21]}  Nf5 {[%clk 0:00:46]} 23. Bc6+ {[%clk 0:01:19]}  Ke7 {[%clk 0:00:43]} 24. Bc5+ {[%clk 0:01:19]} 1-0


[Site "https://www.chess.com"]

[Event "Titled Tuesday Blitz March 14 Early 2023"]
[White "Staudenhocker43"]
[Black "Aradhya, Garg"]
[BlackFideId "25006746"]
[WhiteElo "2420"]
[BlackElo "2263"]
[Result "1/2-1/2"]
[Round "08"]
[TimeControl "180+2"]
[Date "2023.03.14"]
[WhiteClock "0:00:23"]
[BlackClock "0:01:23"]

1. e4 {[%clk 0:03:00]}  e5 {[%clk 0:03:00]} 2. Nf3 {[%clk 0:03:00]}  Nc6 {[%clk 0:03:00]} 3. Nc3 {[%clk 0:03:00]}  Nf6 {[%clk 0:03:00]} 4. d4 {[%clk 0:03:00]}  Bb4 {[%clk 0:03:00]} 5. Nxe5 {[%clk 0:02:59]}  Qe7 {[%clk 0:02:54]} 6. Qd3 {[%clk 0:02:52]}  Nxe5 {[%clk 0:02:53]} 7. dxe5 {[%clk 0:02:53]}  Qxe5 {[%clk 0:02:54]} 8. Bd2 {[%clk 0:02:53]}  O-O {[%clk 0:02:54]} 9. O-O-O {[%clk 0:02:52]}  Bxc3 {[%clk 0:02:54]} 10. Bxc3 {[%clk 0:02:53]}  Qxe4 {[%clk 0:02:54]} 11. Qg3 {[%clk 0:02:48]}  Qg6 {[%clk 0:02:53]} 12. Qxc7 {[%clk 0:02:44]}  Ne4 {[%clk 0:02:54]} 13. Bd4 {[%clk 0:02:38]}  d5 {[%clk 0:02:51]} 14. Qf4 {[%clk 0:02:34]}  Be6 {[%clk 0:02:43]} 15. f3 {[%clk 0:02:33]}  Nf6 {[%clk 0:02:31]} 16. Bd3 {[%clk 0:02:30]}  Nh5 {[%clk 0:02:31]} 17. Qh4 {[%clk 0:01:48]}  Qh6+ {[%clk 0:02:27]} 18. Kb1 {[%clk 0:01:48]}  Nf4 {[%clk 0:02:23]} 19. Qxh6 {[%clk 0:01:47]}  gxh6 {[%clk 0:02:24]} 20. Bf1 {[%clk 0:01:35]}  Rfc8 {[%clk 0:02:06]} 21. Be3 {[%clk 0:01:33]}  Bf5 {[%clk 0:02:07]} 22. Rd2 {[%clk 0:01:33]}  Ne6 {[%clk 0:02:06]} 23. g4 {[%clk 0:01:27]}  Bg6 {[%clk 0:02:04]} 24. Bd3 {[%clk 0:01:25]}  h5 {[%clk 0:02:02]} 25. Bxg6 {[%clk 0:01:23]}  hxg6 {[%clk 0:02:03]} 26. gxh5 {[%clk 0:01:23]}  Rd8 {[%clk 0:02:00]} 27. hxg6 {[%clk 0:01:22]}  fxg6 {[%clk 0:02:00]} 28. Rhd1 {[%clk 0:01:21]}  Kf7 {[%clk 0:01:58]} 29. Rxd5 {[%clk 0:01:20]}  Rxd5 {[%clk 0:01:59]} 30. Rxd5 {[%clk 0:01:21]}  Ke7 {[%clk 0:02:00]} 31. Kc1 {[%clk 0:01:12]}  b6 {[%clk 0:01:59]} 32. Rd2 {[%clk 0:01:08]}  Rf8 {[%clk 0:01:58]} 33. Rf2 {[%clk 0:01:07]}  Kf6 {[%clk 0:01:57]} 34. c4 {[%clk 0:00:59]}  Rc8 {[%clk 0:01:55]} 35. Rc2 {[%clk 0:00:59]}  Ke5 {[%clk 0:01:54]} 36. Kd2 {[%clk 0:00:53]}  Nd4 {[%clk 0:01:54]} 37. Bxd4+ {[%clk 0:00:53]}  Kxd4 {[%clk 0:01:55]} 38. b3 {[%clk 0:00:53]}  g5 {[%clk 0:01:48]} 39. Rc1 {[%clk 0:00:39]}  Rh8 {[%clk 0:01:43]} 40. Rh1 {[%clk 0:00:38]}  Rh3 {[%clk 0:01:42]} 41. Ke2 {[%clk 0:00:39]}  Kc3 {[%clk 0:01:42]} 42. Kf2 {[%clk 0:00:38]}  Kb2 {[%clk 0:01:42]} 43. Kg2 {[%clk 0:00:38]}  Rh4 {[%clk 0:01:42]} 44. Re1 {[%clk 0:00:35]}  Kxa2 {[%clk 0:01:43]} 45. Re7 {[%clk 0:00:35]}  Kxb3 {[%clk 0:01:42]} 46. Rxa7 {[%clk 0:00:35]}  Kxc4 {[%clk 0:01:42]} 47. Rg7 {[%clk 0:00:32]}  Rh5 {[%clk 0:01:41]} 48. Kg3 {[%clk 0:00:33]}  b5 {[%clk 0:01:41]} 49. Rc7+ {[%clk 0:00:32]}  Kd4 {[%clk 0:01:40]} 50. Kg4 {[%clk 0:00:31]}  Rxh2 {[%clk 0:01:39]} 51. Kxg5 {[%clk 0:00:31]}  b4 {[%clk 0:01:39]} 52. Rb7 {[%clk 0:00:31]}  Kc4 {[%clk 0:01:37]} 53. f4 {[%clk 0:00:30]}  b3 {[%clk 0:01:37]} 54. f5 {[%clk 0:00:30]}  Rg2+ {[%clk 0:01:35]} 55. Kh6 {[%clk 0:00:30]}  Rh2+ {[%clk 0:01:30]} 56. Kg7 {[%clk 0:00:29]}  Rg2+ {[%clk 0:01:30]} 57. Kh7 {[%clk 0:00:29]}  Rf2 {[%clk 0:01:31]} 58. Kg6 {[%clk 0:00:29]}  Rg2+ {[%clk 0:01:31]} 59. Kh6 {[%clk 0:00:28]}  Rf2 {[%clk 0:01:30]} 60. Kg6 {[%clk 0:00:27]}  Rg2+ {[%clk 0:01:23]} 61. Kh6 {[%clk 0:00:23]} 1/2-1/2


[Site "https://www.chess.com"]

[Event "Titled Tuesday Blitz March 14 Early 2023"]
[White "Leve, Nitai"]
[Black "Fiorito, Francisco"]
[WhiteFideId "2006898"]
[BlackFideId "180165"]
[WhiteElo "2144"]
[BlackElo "2341"]
[Result "0-1"]
[Round "08"]
[TimeControl "180+2"]
[Date "2023.03.14"]
[WhiteClock "0:00:02"]
[BlackClock "0:00:52"]

1. e4 {[%clk 0:02:18]}  c5 {[%clk 0:02:58]} 2. Nf3 {[%clk 0:02:18]}  Nc6 {[%clk 0:02:58]} 3. d4 {[%clk 0:02:18]}  cxd4 {[%clk 0:02:59]} 4. Nxd4 {[%clk 0:02:18]}  g6 {[%clk 0:03:00]} 5. Nc3 {[%clk 0:02:18]}  Bg7 {[%clk 0:02:59]} 6. Be3 {[%clk 0:02:19]}  Nf6 {[%clk 0:03:00]} 7. Be2 {[%clk 0:02:18]}  O-O {[%clk 0:02:59]} 8. f4 {[%clk 0:02:19]}  d6 {[%clk 0:02:57]} 9. Nb3 {[%clk 0:02:18]}  a5 {[%clk 0:02:55]} 10. a4 {[%clk 0:02:18]}  Be6 {[%clk 0:02:53]} 11. g4 {[%clk 0:02:18]}  Rc8 {[%clk 0:02:46]} 12. g5 {[%clk 0:02:17]}  Ne8 {[%clk 0:02:44]} 13. h4 {[%clk 0:02:18]}  Nb4 {[%clk 0:02:42]} 14. h5 {[%clk 0:02:16]}  Qc7 {[%clk 0:02:37]} 15. hxg6 {[%clk 0:02:11]}  fxg6 {[%clk 0:02:25]} 16. Nd4 {[%clk 0:01:53]}  Bc4 {[%clk 0:02:13]} 17. Bg4 {[%clk 0:00:37]}  Bxd4 {[%clk 0:01:19]} 18. Bxd4 {[%clk 0:00:33]}  Rxf4 {[%clk 0:01:19]} 19. Rxh7 {[%clk 0:00:03]}  Kxh7 {[%clk 0:01:07]} 20. Qd2 {[%clk 0:00:04]}  Rxg4 {[%clk 0:00:59]} 21. Qh2+ {[%clk 0:00:03]}  Kg8 {[%clk 0:00:59]} 22. O-O-O {[%clk 0:00:02]}  Kf7 {[%clk 0:00:52]} 0-1


[Site "https://www.chess.com"]

[Event "Titled Tuesday Blitz March 14 Early 2023"]
[White "Karttunen, Mika"]
[Black "Mirzanurov, Bulat"]
[WhiteFideId "502081"]
[BlackFideId "4184521"]
[WhiteElo "2396"]
[BlackElo "2019"]
[Result "1-0"]
[Round "08"]
[TimeControl "180+2"]
[Date "2023.03.14"]
[WhiteClock "0:00:05"]
[BlackClock "0:00:01"]

1. e4 {[%clk 0:03:00]}  c5 {[%clk 0:02:59]} 2. Nf3 {[%clk 0:03:00]}  d6 {[%clk 0:02:53]} 3. d4 {[%clk 0:02:59]}  cxd4 {[%clk 0:02:54]} 4. Nxd4 {[%clk 0:02:59]}  Nf6 {[%clk 0:02:52]} 5. Nc3 {[%clk 0:02:59]}  a6 {[%clk 0:02:47]} 6. Bg5 {[%clk 0:02:58]}  e6 {[%clk 0:02:46]} 7. f4 {[%clk 0:02:58]}  h6 {[%clk 0:02:46]} 8. Bh4 {[%clk 0:02:58]}  Qb6 {[%clk 0:02:47]} 9. Qd2 {[%clk 0:02:57]}  Qxb2 {[%clk 0:02:46]} 10. Rb1 {[%clk 0:02:57]}  Qa3 {[%clk 0:02:46]} 11. e5 {[%clk 0:02:43]}  Nfd7 {[%clk 0:02:44]} 12. Be2 {[%clk 0:02:30]}  Be7 {[%clk 0:02:17]} 13. Bxe7 {[%clk 0:02:20]}  Kxe7 {[%clk 0:02:13]} 14. exd6+ {[%clk 0:02:12]}  Qxd6 {[%clk 0:02:11]} 15. Ne4 {[%clk 0:02:02]}  Qa3 {[%clk 0:02:06]} 16. Rb3 {[%clk 0:01:54]}  Qxa2 {[%clk 0:02:00]} 17. Qb4+ {[%clk 0:01:08]}  Kd8 {[%clk 0:01:27]} 18. O-O {[%clk 0:00:54]}  a5 {[%clk 0:01:14]} 19. Qd6 {[%clk 0:00:21]}  a4 {[%clk 0:00:55]} 20. Rb5 {[%clk 0:00:09]}  Ra6 {[%clk 0:00:51]} 21. Qb4 {[%clk 0:00:09]}  Nc6 {[%clk 0:00:43]} 22. Qc3 {[%clk 0:00:06]}  Nxd4 {[%clk 0:00:38]} 23. Qxd4 {[%clk 0:00:06]}  Qxc2 {[%clk 0:00:29]} 24. Bd3 {[%clk 0:00:06]}  Qc6 {[%clk 0:00:20]} 25. Qxg7 {[%clk 0:00:06]}  Re8 {[%clk 0:00:16]} 26. Qxh6 {[%clk 0:00:06]}  a3 {[%clk 0:00:12]} 27. Qg5+ {[%clk 0:00:04]}  Kc7 {[%clk 0:00:07]} 28. Ra1 {[%clk 0:00:04]}  a2 {[%clk 0:00:06]} 29. Rb2 {[%clk 0:00:04]}  Kb8 {[%clk 0:00:03]} 30. Qg3 {[%clk 0:00:03]}  Ka8 {[%clk 0:00:02]} 31. Qf2 {[%clk 0:00:03]}  Nb6 {[%clk 0:00:01]} 32. Rbxa2 {[%clk 0:00:03]}  Rxa2 {[%clk 0:00:02]} 33. Qxa2+ {[%clk 0:00:03]}  Kb8 {[%clk 0:00:03]} 34. Qa7+ {[%clk 0:00:04]}  Kc7 {[%clk 0:00:04]} 35. Qa3 {[%clk 0:00:03]}  Rd8 {[%clk 0:00:04]} 36. Rc1 {[%clk 0:00:04]}  Rxd3 {[%clk 0:00:03]} 37. Rxc6+ {[%clk 0:00:04]}  bxc6 {[%clk 0:00:03]} 38. Qxd3 {[%clk 0:00:05]}  Nd5 {[%clk 0:00:02]} 39. Qa3 {[%clk 0:00:05]}  Bd7 {[%clk 0:00:02]} 40. Qd6+ {[%clk 0:00:05]}  Kc8 {[%clk 0:00:02]} 41. Nc5 {[%clk 0:00:06]}  Be8 {[%clk 0:00:01]} 42. Qf8 {[%clk 0:00:05]}  Kd8 {[%clk 0:00:01]} 43. h4 {[%clk 0:00:05]}  Nc7 {[%clk 0:00:01]} 44. Qd6+ {[%clk 0:00:05]}  Kc8 {[%clk 0:00:01]} 45. Qf8 {[%clk 0:00:05]}  Kd8 {[%clk 0:00:01]} 46. h5 {[%clk 0:00:05]} 1-0


[Site "https://www.chess.com"]